[Event "FIDE World Rapid-ch Open 2018"]
[White "Melkumyan, Hrant"]
[Black "Geller, Jakov"]
[Site "St. Petersburg"]
[Round "5.46"]
[Annotator "RC"]
[Result "0-1"]
[Date "2018.12.26"]
[WhiteElo "2670"]
[BlackElo "2518"]
[PlyCount "67"]
[TimeControl "900+10"]

1. c4 {[%emt 0:0:0]} e6 {[%emt 0:0:0]} 2. Nf3 {[%emt 0:0:2]} d5 {[%emt 0:0:0]} 3. d4 {[%emt 0:0:4]} Nf6 {[%emt 0:0:0]} 4. Nc3 {[%emt 0:0:2]} c6 {[%emt 0:0:17]} 5. Bg5 {[%emt 0:0:6]} dxc4 {[%emt 0:0:3]} 6. e4 {[%emt 0:0:0]} b5 {[%emt 0:0:2]} 7. e5 {[%emt 0:0:4]} h6 {[%emt 0:0:3]} 8. Bh4 {[%emt 0:0:2]
} g5 {[%emt 0:0:3]} 9. Nxg5 {[%emt 0:0:2]} hxg5 {[%emt 0:0:0]} 10. Bxg5 {[%emt 0:0:2]} Nbd7 {[%emt 0:0:3]} 11. g3 {[%emt 0:0:14]} Bb7 {[%emt 0:0:13]} 12. exf6 {[%emt 0:0:18]} c5 {[%emt 0:0:49]} 13. d5 {[%emt 0:0:3]
} Qb6 {[%emt 0:0:4]} 14. Bg2 {[%emt 0:0:3]} 0-0-0 {[%emt 0:0:0]} 15. 0-0 {[%emt 0:0:3]} b4 {[%emt 0:0:13]} 16. Rb1 {[%emt 0:0:3]} Qa6 {[%emt 0:1:44]} 17. dxe6 {[%emt 0:0:29]} Bxg2 {[%emt 0:0:13]} 18. e7 {[%emt 0:0:19]
} Bxf1 {[%emt 0:0:34]} 19. Kxf1 {[%emt 0:0:6]} bxc3 {[%emt 0:0:0]} 20. Qd5 {[%emt 0:2:31]} Bh6 {[%emt 0:1:11]} 21. exd8=Q+ {[%emt 0:0:0]} Rxd8 {[%emt 0:0:58]} 22. bxc3 {[%emt 0:11:50]} Bxg5 {[%emt 0:0:2]} 23. Qxg5 {[%emt 0:0:1]} Qc6 {[%emt 0:0:9]} 24. Kg1 {[%emt 0:0:17]} Qe4 {[%emt 0:1:10]
} 25. Rd1 {[%emt 0:0:18]} Ne5 {[%emt 0:0:7]} 26. Rxd8+ {[%emt 0:0:4]
} Kxd8 {[%emt 0:0:2]} 27. Qh5 {[%emt 0:0:17]} Qe1+ {[%emt 0:0:0]} 28. Kg2 {[%emt 0:0:1]} Qxc3 {[%emt 0:0:2]} 29. h4 {[%emt 0:0:16]} Qd4 {[%emt 0:0:6]} 30. Qh8+ {[%emt 0:0:11]} Kd7 {[%emt 0:0:7]} 31. Qa8 {[%emt 0:0:2]
} c3 {[%emt 0:0:8]} 32. Qxa7+ {[%emt 0:0:2]} Ke6 {[%emt 0:0:0]} 33. Qa6+ {[%emt 0:0:11]} Kf5 {[%emt 0:0:17]} 34. f3 {[%emt 0:0:39]} 0-1

[Event "FIDE World Rapid-ch Open 2018"]
[White "Tregubov, Pavel V."]
[Black "Saric, Ivan"]
[Site "St. Petersburg"]
[Round "5.47"]
[Annotator "RC"]
[Result "0-1"]
[Date "2018.12.26"]
[WhiteElo "2592"]
[BlackElo "2695"]
[PlyCount "84"]
[TimeControl "900+10"]

1. d4 {[%emt 0:0:0]} Nf6 {[%emt 0:0:0]} 2. c4 {[%emt 0:0:0]} e6 {[%emt 0:0:0]} 3. Nc3 {[%emt 0:0:0]} Bb4 {[%emt 0:0:0]} 4. e3 {[%emt 0:0:0]} 0-0 {[%emt 0:0:0]} 5. Nge2 {[%emt 0:0:0]} Re8 {[%emt 0:0:0]} 6. a3 {[%emt 0:0:0]} Bf8 {[%emt 0:0:1]} 7. d5 {[%emt 0:0:1]} a5 {[%emt 0:0:14]} 8. Ng3 {[%emt 0:0:24]} Na6 {[%emt 0:0:13]} 9. Be2 {[%emt 0:0:3]} Nc5 {[%emt 0:0:0]} 10. b3 {[%emt 0:0:2]} exd5 {[%emt 0:0:22]} 11. cxd5 {[%emt 0:0:3]} a4 {[%emt 0:2:34]} 12. b4 {[%emt 0:1:29]} Nb3 {[%emt 0:0:5]} 13. Rb1 {[%emt 0:0:0]} c5 {[%emt 0:0:44]} 14. b5 {[%emt 0:2:2]} Nxc1 {[%emt 0:0:51]} 15. Qxc1 {[%emt 0:0:23]} d6 {[%emt 0:0:22]} 16. 0-0 {[%emt 0:0:12]} Nd7 {[%emt 0:0:26]
} 17. Qc2 {[%emt 0:1:2]} Nb6 {[%emt 0:0:4]} 18. e4 {[%emt 0:0:0]} g6 {[%emt 0:0:7]} 19. f4 {[%emt 0:0:7]} Bg7 {[%emt 0:0:5]} 20. Kh1 {[%emt 0:0:16]} h5 {[%emt 0:1:1]} 21. Bxh5 {[%emt 0:2:32]} gxh5 {[%emt 0:1:16]
} 22. Nxh5 {[%emt 0:0:1]} Qh4 {[%emt 0:0:22]} 23. Nxg7 {[%emt 0:0:21]
} Kxg7 {[%emt 0:0:1]} 24. e5 {[%emt 0:0:31]} Rh8 {[%emt 0:0:0]} 25. g3 {[%emt 0:0:2]} Bf5 {[%emt 0:0:2]} 26. gxh4 {[%emt 0:0:27]} Bxc2 {[%emt 0:0:2]} 27. Rbc1 {[%emt 0:1:36]} Bd3 {[%emt 0:0:44]} 28. Rf3 {[%emt 0:0:32]
} c4 {[%emt 0:0:1]} 29. f5 {[%emt 0:0:47]} dxe5 {[%emt 0:0:0]} 30. f6+ {[%emt 0:0:2]} Kh6 {[%emt 0:0:22]} 31. Re1 {[%emt 0:0:10]} e4 {[%emt 0:0:19]} 32. Rf5 {[%emt 0:0:48]} Rhg8 {[%emt 0:0:56]} 33. Re3 {[%emt 0:0:42]
} Rg6 {[%emt 0:0:29]} 34. Nxe4 {[%emt 0:0:34]} Rag8 {[%emt 0:0:0]} 35. Rg5 {[%emt 0:0:5]} Nxd5 {[%emt 0:0:37]} 36. Nd6 {[%emt 0:0:20]} Rxf6 {[%emt 0:1:11]} 37. Reg3 {[%emt 0:0:19]} Rf1+ {[%emt 0:0:6]} 38. Rg1 {[%emt 0:0:25]
} Rxg1+ {[%emt 0:0:6]} 39. Kxg1 {[%emt 0:0:5]} Rxg5+ {[%emt 0:0:5]
} 40. hxg5+ {[%emt 0:0:2]} Kxg5 {[%emt 0:0:7]} 41. Kf2 {[%emt 0:0:1]
} c3 {[%emt 0:0:15]} 42. Ke1 {[%emt 0:0:7]} Kf4 {[%emt 0:0:0]} 0-1

[Event "FIDE World Rapid-ch Open 2018"]
[White "Potapov, Pavel"]
[Black "Demchenko, Anton"]
[Site "St. Petersburg"]
[Round "5.48"]
[Annotator "RC"]
[Result "0-1"]
[Date "2018.12.26"]
[WhiteElo "2516"]
[BlackElo "2679"]
[PlyCount "98"]
[TimeControl "900+10"]

1. e4 {[%emt 0:0:0]} c5 {[%emt 0:0:0]} 2. Nf3 {[%emt 0:0:0]} Nc6 {[%emt 0:0:0]
} 3. c3 {[%emt 0:0:2]} Nf6 {[%emt 0:0:32]} 4. e5 {[%emt 0:0:0]} Nd5 {[%emt 0:0:2]} 5. d4 {[%emt 0:0:25]} cxd4 {[%emt 0:0:2]} 6. cxd4 {[%emt 0:0:2]} d6 {[%emt 0:0:4]} 7. Bc4 {[%emt 0:0:7]} dxe5 {[%emt 0:0:0]} 8. dxe5 {[%emt 0:0:3]} Ndb4 {[%emt 0:0:41]} 9. Qb3 {[%emt 0:0:13]} e6 {[%emt 0:0:28]} 10. 0-0 {[%emt 0:0:7]} Na5 {[%emt 0:0:33]} 11. Qa4+ {[%emt 0:0:7]
} Bd7 {[%emt 0:0:5]} 12. Bb5 {[%emt 0:0:2]} Bxb5 {[%emt 0:0:0]} 13. Qxb5+ {[%emt 0:0:2]} Nac6 {[%emt 0:0:3]} 14. Nc3 {[%emt 0:0:5]} a6 {[%emt 0:1:49]} 15. Qc4 {[%emt 0:0:3]} Qd3 {[%emt 0:1:39]} 16. Qg4 {[%emt 0:0:4]
} Qg6 {[%emt 0:0:59]} 17. Qxg6 {[%emt 0:0:23]} hxg6 {[%emt 0:0:0]} 18. Rd1 {[%emt 0:0:51]} Rd8 {[%emt 0:1:2]} 19. Rxd8+ {[%emt 0:1:4]
} Nxd8 {[%emt 0:0:3]} 20. Bg5 {[%emt 0:0:26]} Be7 {[%emt 0:0:47]} 21. Rd1 {[%emt 0:0:24]
} f6 {[%emt 0:0:45]} 22. Be3 {[%emt 0:0:41]} Nbc6 {[%emt 0:0:0]} 23. exf6 {[%emt 0:0:59]} gxf6 {[%emt 0:0:1]} 24. Ne4 {[%emt 0:0:20]} Rh5 {[%emt 0:0:34]} 25. g4 {[%emt 0:0:57]} Ra5 {[%emt 0:1:13]} 26. a3 {[%emt 0:0:46]
} Ra4 {[%emt 0:0:21]} 27. Nfd2 {[%emt 0:0:47]} f5 {[%emt 0:0:0]} 28. gxf5 {[%emt 0:0:8]} gxf5 {[%emt 0:0:3]} 29. Nc3 {[%emt 0:0:20]} Rg4+ {[%emt 0:0:1]} 30. Kf1 {[%emt 0:0:4]} Bf6 {[%emt 0:0:7]} 31. h3 {[%emt 0:1:17]
} Rh4 {[%emt 0:0:1]} 32. Kg2 {[%emt 0:0:5]} Bxc3 {[%emt 0:0:0]} 33. bxc3 {[%emt 0:0:1]} Ra4 {[%emt 0:0:1]} 34. Bc5 {[%emt 0:0:27]} e5 {[%emt 0:0:21]} 35. c4 {[%emt 0:0:59]} Ne6 {[%emt 0:1:1]} 36. Bd6 {[%emt 0:0:0]} b5 {[%emt 0:1:21]} 37. cxb5 {[%emt 0:0:32]} axb5 {[%emt 0:0:1]} 38. Nb3 {[%emt 0:0:45]} Rc4 {[%emt 0:0:18]} 39. Rc1 {[%emt 0:1:17]} Kd7 {[%emt 0:0:25]
} 40. Rd1 {[%emt 0:0:33]} Ke8 {[%emt 0:0:55]} 41. Rc1 {[%emt 0:0:0]} Nf4+ {[%emt 0:0:17]} 42. Kh2 {[%emt 0:0:47]} Nd3 {[%emt 0:0:10]} 43. Rb1 {[%emt 0:2:3]} Rc2 {[%emt 0:0:22]} 44. Kg3 {[%emt 0:0:31]} Rc3 {[%emt 0:0:38]
} 45. f3 {[%emt 0:0:43]} Kf7 {[%emt 0:0:25]} 46. h4 {[%emt 0:0:0]} Kg6 {[%emt 0:0:18]} 47. Kh3 {[%emt 0:0:33]} Kh5 {[%emt 0:0:16]} 48. Nd2 {[%emt 0:0:35]} Rc2 {[%emt 0:0:3]} 49. Nf1 {[%emt 0:0:13]} Nf4+ {[%emt 0:0:16]
} 0-1

[Event "FIDE World Rapid-ch Open 2018"]
[White "Esipenko, Andrey"]
[Black "Anisimov, Pavel"]
[Site "St. Petersburg"]
[Round "5.49"]
[Annotator "ChessBase"]
[Result "1-0"]
[Date "2018.12.26"]
[WhiteElo "2593"]
[BlackElo "2533"]
[PlyCount "41"]
[TimeControl "900+10"]

1. d4 {[%emt 0:0:0]} Nf6 {[%emt 0:0:1]} 2. Nf3 {[%emt 0:0:0]} e6 {[%emt 0:0:1]
} 3. Bf4 {[%emt 0:0:0]} d5 {[%emt 0:0:18]} 4. e3 {[%emt 0:0:0]} c5 {[%emt 0:0:2]} 5. c3 {[%emt 0:0:0]} Bd6 {[%emt 0:0:5]} 6. Bg3 {[%emt 0:0:1]
} 0-0 {[%emt 0:0:14]} 7. Nbd2 {[%emt 0:0:2]} Qc7 {[%emt 0:0:0]} 8. dxc5 {[%emt 0:0:5]} Qxc5 {[%emt 0:0:47]} 9. Bd3 {[%emt 0:0:2]} Re8 {[%emt 0:1:26]} 10. e4 {[%emt 0:0:48]} Bxg3 {[%emt 0:0:42]} 11. hxg3 {[%emt 0:0:2]
} e5 {[%emt 0:0:19]} 12. Qe2 {[%emt 0:0:42]} Nc6 {[%emt 0:0:0]} 13. exd5 {[%emt 0:3:25]} e4 {[%emt 0:0:15]} 14. Nxe4 {[%emt 0:0:2]} Nxe4 {[%emt 0:2:6]} 15. Bxe4 {[%emt 0:0:2]} f5 {[%emt 0:4:48]} 16. Ng5 {[%emt 0:0:56]
} Qe7 {[%emt 0:0:30]} 17. f4 {[%emt 0:8:12]} Nd4 {[%emt 0:0:0]} 18. cxd4 {[%emt 0:0:51]} fxe4 {[%emt 0:0:18]} 19. Rxh7 {[%emt 0:0:19]} e3 {[%emt 0:0:12]} 20. d6 {[%emt 0:0:12]} Qxd6 {[%emt 0:0:10]} 21. Rh8+ {[%emt 0:0:4]
} 1-0

[Event "FIDE World Rapid-ch Open 2018"]
[White "Grigoriants, Sergey"]
[Black "Sokolin, Leonid"]
[Site "St. Petersburg"]
[Round "5.50"]
[Annotator "ChessBase"]
[Result "1-0"]
[Date "2018.12.26"]
[WhiteElo "2540"]
[BlackElo "2508"]
[PlyCount "95"]
[TimeControl "900+10"]

1. e4 {[%emt 0:0:0]} e6 {[%emt 0:0:0]} 2. d4 {[%emt 0:0:0]} d5 {[%emt 0:0:0]} 3. Nd2 {[%emt 0:0:4]} Nf6 {[%emt 0:0:0]} 4. e5 {[%emt 0:0:10]} Nfd7 {[%emt 0:0:0]} 5. Bd3 {[%emt 0:0:9]} c5 {[%emt 0:0:0]} 6. c3 {[%emt 0:0:1]
} Nc6 {[%emt 0:0:0]} 7. Ne2 {[%emt 0:0:8]} cxd4 {[%emt 0:0:0]} 8. cxd4 {[%emt 0:0:1]} f6 {[%emt 0:0:0]} 9. exf6 {[%emt 0:0:6]} Nxf6 {[%emt 0:0:0]} 10. Nf3 {[%emt 0:0:4]} Qa5+ {[%emt 0:0:5]} 11. Bd2 {[%emt 0:0:14]
} Qb6 {[%emt 0:0:1]} 12. Bc3 {[%emt 0:0:4]} Bd6 {[%emt 0:0:0]} 13. 0-0 {[%emt 0:0:5]} 0-0 {[%emt 0:0:2]} 14. Ng3 {[%emt 0:0:19]} Bd7 {[%emt 0:0:17]} 15. Re1 {[%emt 0:0:53]} g6 {[%emt 0:0:37]} 16. a3 {[%emt 0:0:0]} a5 {[%emt 0:0:27]} 17. Rc1 {[%emt 0:1:0]} Bf4 {[%emt 0:2:27]} 18. Rc2 {[%emt 0:0:10]} Rae8 {[%emt 0:0:49]} 19. Rce2 {[%emt 0:0:25]} Bc8 {[%emt 0:0:31]
} 20. Nf1 {[%emt 0:6:5]} Qc7 {[%emt 0:0:56]} 21. Rc2 {[%emt 0:0:0]} Qg7 {[%emt 0:0:52]} 22. b4 {[%emt 0:0:8]} axb4 {[%emt 0:0:20]} 23. axb4 {[%emt 0:0:1]} Bd6 {[%emt 0:0:29]} 24. Rb2 {[%emt 0:0:39]} g5 {[%emt 0:2:2]
} 25. b5 {[%emt 0:0:5]} Ne7 {[%emt 0:0:50]} 26. Bb4 {[%emt 0:0:0]} Bxb4 {[%emt 0:0:41]} 27. Rxb4 {[%emt 0:0:2]} Nf5 {[%emt 0:0:29]} 28. Ng3 {[%emt 0:0:59]} Nxg3 29. fxg3 {[%emt 0:0:17]} Nd7 {[%emt 0:1:44]} 30. Ne5 {[%emt 0:0:9]} Nxe5 {[%emt 0:0:36]} 31. Rxe5 {[%emt 0:0:1]} Re7 {[%emt 0:0:46]
} 32. h3 {[%emt 0:0:11]} Qf6 {[%emt 0:0:9]} 33. Rb2 {[%emt 0:0:0]} Bd7 {[%emt 0:0:6]} 34. Kh2 {[%emt 0:0:24]} Rg7 {[%emt 0:1:7]} 35. Qe1 {[%emt 0:0:24]} h5 {[%emt 0:0:8]} 36. Be2 {[%emt 0:0:49]} Qh6 {[%emt 0:0:0]} 37. Rc2 {[%emt 0:0:43]} Rgf7 {[%emt 0:2:5]} 38. Rc7 {[%emt 0:0:19]} Be8 {[%emt 0:0:31]} 39. Rxf7 {[%emt 0:0:20]} Rxf7 {[%emt 0:0:10]} 40. Qc1 {[%emt 0:0:14]
} Rf5 {[%emt 0:0:18]} 41. Qc8 {[%emt 0:0:10]} Kf7 {[%emt 0:0:0]} 42. Rxf5+ {[%emt 0:0:15]} exf5 {[%emt 0:0:1]} 43. Qxb7+ {[%emt 0:0:32]
} Kf8 {[%emt 0:0:4]} 44. Qxd5 Qf6 45. Qc5+ {[%emt 0:0:30]} Kg7 {[%emt 0:0:0]} 46. b6 f4 47. Qe5 {[%emt 0:0:41]} Qxe5 {[%emt 0:0:8]} 48. dxe5 {[%emt 0:0:1]
} 1-0

[Event "FIDE World Rapid-ch Open 2018"]
[White "Potkin, Vladimir"]
[Black "Oganian, Miran"]
[Site "St. Petersburg"]
[Round "5.51"]
[Annotator "ChessBase"]
[Result "1-0"]
[Date "2018.12.26"]
[WhiteElo "2597"]
[BlackElo "2423"]
[PlyCount "57"]
[TimeControl "900+10"]

1. Nf3 {[%emt 0:0:0]} Nf6 {[%emt 0:0:0]} 2. c4 {[%emt 0:0:0]} e6 {[%emt 0:0:0]
} 3. Nc3 {[%emt 0:0:0]} d5 {[%emt 0:0:0]} 4. e3 {[%emt 0:0:0]} c5 {[%emt 0:0:33]} 5. d4 {[%emt 0:0:4]} dxc4 {[%emt 0:0:4]} 6. Bxc4 {[%emt 0:0:2]
} a6 {[%emt 0:0:2]} 7. Bb3 {[%emt 0:0:29]} Nc6 {[%emt 0:0:48]
} 8. 0-0 {[%emt 0:0:4]} Be7 {[%emt 0:0:22]} 9. Qe2 {[%emt 0:0:59]} 0-0 {[%emt 0:2:8]
} 10. Rd1 {[%emt 0:0:6]} Qc7 {[%emt 0:0:38]} 11. dxc5 {[%emt 0:0:42]
} Bxc5 {[%emt 0:0:7]} 12. h3 {[%emt 0:0:6]} b5 {[%emt 0:0:0]} 13. e4 {[%emt 0:0:5]} Bb7 {[%emt 0:0:2]} 14. e5 {[%emt 0:0:6]} Nd7 {[%emt 0:0:3]
} 15. Bf4 {[%emt 0:0:20]} Rfd8 {[%emt 0:1:18]} 16. Ne4 {[%emt 0:0:39]
} Be7 {[%emt 0:0:25]} 17. Rac1 {[%emt 0:0:23]} Nf8 {[%emt 0:0:0]} 18. Nd6 {[%emt 0:0:27]} Ng6 {[%emt 0:0:21]} 19. Bg3 {[%emt 0:0:16]} Qb6 {[%emt 0:0:29]} 20. h4 {[%emt 0:4:17]} Nb4 {[%emt 0:1:40]} 21. h5 {[%emt 0:0:0]} Nf8 {[%emt 0:0:19]} 22. Bh4 {[%emt 0:2:1]} Bxf3 {[%emt 0:2:29]} 23. Qxf3 {[%emt 0:0:2]} Bxh4 {[%emt 0:0:5]} 24. Qxf7+ {[%emt 0:0:2]} Kh8 {[%emt 0:0:1]
} 25. Qf4 {[%emt 0:0:9]} Qxf2+ {[%emt 0:1:29]} 26. Qxf2 {[%emt 0:0:2]
} Bxf2+ {[%emt 0:0:1]} 27. Kxf2 {[%emt 0:0:2]} Kg8 {[%emt 0:0:0]} 28. a3 {[%emt 0:0:13]} Nd5 {[%emt 0:0:11]} 29. Rxd5 {[%emt 0:0:3]} 1-0

[Event "FIDE World Rapid-ch Open 2018"]
[White "Popov, Valerij"]
[Black "Inarkiev, Ernesto"]
[Site "St. Petersburg"]
[Round "5.52"]
[Annotator "RC"]
[Result "0-1"]
[Date "2018.12.26"]
[WhiteElo "2532"]
[BlackElo "2693"]
[PlyCount "62"]
[TimeControl "900+10"]

1. Nf3 {[%emt 0:0:0]} d5 {[%emt 0:0:0]} 2. d4 {[%emt 0:0:0]} Nf6 {[%emt 0:0:0]
} 3. c4 {[%emt 0:0:0]} dxc4 {[%emt 0:0:2]} 4. e3 {[%emt 0:0:0]} e6 {[%emt 0:0:15]} 5. Bxc4 {[%emt 0:0:2]} c5 {[%emt 0:0:2]} 6. 0-0 {[%emt 0:0:3]
} Nc6 {[%emt 0:0:1]} 7. Nc3 {[%emt 0:0:8]} a6 {[%emt 0:0:20]
} 8. Qe2 {[%emt 0:1:36]} b5 {[%emt 0:0:11]} 9. Bb3 {[%emt 0:0:10]} Bb7 {[%emt 0:2:23]
} 10. Rd1 {[%emt 0:0:19]} Be7 {[%emt 0:0:36]} 11. dxc5 {[%emt 0:2:28]
} Qc7 {[%emt 0:0:1]} 12. e4 {[%emt 0:2:49]} 0-0 {[%emt 0:0:0]} 13. Bg5 {[%emt 0:1:6]} Rad8 {[%emt 0:2:39]} 14. Rac1 {[%emt 0:1:7]} Rxd1+ {[%emt 0:0:14]} 15. Nxd1 {[%emt 0:0:22]} Rd8 {[%emt 0:0:36]} 16. e5 {[%emt 0:2:18]
} Nd7 {[%emt 0:0:37]} 17. Bxe7 {[%emt 0:0:38]} Nxe7 {[%emt 0:0:0]} 18. Bc2 {[%emt 0:0:1]} Nxc5 {[%emt 0:2:53]} 19. Bxh7+ {[%emt 0:0:0]} Kxh7 {[%emt 0:0:1]} 20. b4 {[%emt 0:0:1]} Bxf3 {[%emt 0:1:3]} 21. gxf3 {[%emt 0:0:1]} Rd5 {[%emt 0:0:59]} 22. f4 {[%emt 0:0:2]} Ng6 {[%emt 0:0:32]
} 23. Ne3 {[%emt 0:1:51]} Rd4 {[%emt 0:1:8]} 24. Rxc5 {[%emt 0:0:12]
} Qd7 {[%emt 0:0:4]} 25. f5 {[%emt 0:1:28]} exf5 {[%emt 0:0:0]} 26. Qh5+ {[%emt 0:0:39]} Kg8 {[%emt 0:0:1]} 27. h3 {[%emt 0:0:42]} Ne7 {[%emt 0:0:50]} 28. a3 {[%emt 0:0:17]} Rd3 {[%emt 0:0:7]} 29. a4 {[%emt 0:0:0]} bxa4 {[%emt 0:0:30]} 30. Ra5 {[%emt 0:0:1]} f4 {[%emt 0:0:2]} 31. Ng2 {[%emt 0:0:32]} Rxh3 {[%emt 0:0:12]} 0-1

[Event "FIDE World Rapid-ch Open 2018"]
[White "Kryakvin, Dmitry"]
[Black "Kovalev, Vladislav"]
[Site "St. Petersburg"]
[Round "5.53"]
[Annotator "RC"]
[Result "1/2-1/2"]
[Date "2018.12.26"]
[WhiteElo "2588"]
[BlackElo "2683"]
[PlyCount "121"]
[TimeControl "900+10"]

1. d4 {[%emt 0:0:0]} Nf6 {[%emt 0:0:0]} 2. c4 {[%emt 0:0:0]} g6 {[%emt 0:0:0]} 3. Nc3 {[%emt 0:0:0]} Bg7 {[%emt 0:0:0]} 4. e4 {[%emt 0:0:0]} d6 {[%emt 0:0:1]} 5. Be2 {[%emt 0:0:0]} 0-0 {[%emt 0:0:1]} 6. Bg5 {[%emt 0:0:0]} c5 {[%emt 0:0:28]} 7. d5 {[%emt 0:0:3]} h6 {[%emt 0:0:14]} 8. Be3 {[%emt 0:0:7]
} e6 {[%emt 0:0:2]} 9. dxe6 {[%emt 0:0:4]} Bxe6 {[%emt 0:0:0]} 10. Qd2 {[%emt 0:0:17]} Kh7 {[%emt 0:1:24]} 11. h3 {[%emt 0:0:5]} Nc6 {[%emt 0:0:20]} 12. Nf3 {[%emt 0:0:3]} Qe7 {[%emt 0:4:24]} 13. 0-0 {[%emt 0:0:21]
} Rad8 {[%emt 0:0:1]} 14. Rfe1 {[%emt 0:0:26]} Ne5 {[%emt 0:0:0]} 15. Nxe5 {[%emt 0:0:19]} dxe5 {[%emt 0:0:1]} 16. Qc2 {[%emt 0:0:2]
} Ne8 {[%emt 0:0:37]} 17. Rad1 {[%emt 0:0:32]} Rxd1 {[%emt 0:0:13]} 18. Rxd1 {[%emt 0:0:3]} b6 {[%emt 0:0:0]} 19. Qd2 {[%emt 0:2:17]} f5 {[%emt 0:0:0]} 20. f3 {[%emt 0:0:28]} Qf7 {[%emt 0:0:7]} 21. Nd5 {[%emt 0:0:58]} Bxd5 {[%emt 0:3:47]} 22. Qxd5 {[%emt 0:3:17]} Qxd5 {[%emt 0:0:2]} 23. Rxd5 {[%emt 0:1:30]
} Nf6 {[%emt 0:0:0]} 24. Rd6 {[%emt 0:0:29]} fxe4 {[%emt 0:0:0]} 25. fxe4 {[%emt 0:0:1]} Nxe4 {[%emt 0:0:14]} 26. Rd7 {[%emt 0:0:1]} Ng3 {[%emt 0:0:11]} 27. Bf3 {[%emt 0:2:7]} e4 {[%emt 0:0:33]} 28. Bf2 {[%emt 0:0:22]
} exf3 {[%emt 0:0:5]} 29. Bxg3 {[%emt 0:0:1]} Kg8 {[%emt 0:0:0]} 30. gxf3 {[%emt 0:1:2]} Rxf3 {[%emt 0:1:51]} 31. Kg2 {[%emt 0:0:1]
} Rf7 {[%emt 0:0:8]} 32. Rxf7 {[%emt 0:1:42]} Kxf7 {[%emt 0:0:1]} 33. Bb8 {[%emt 0:0:1]} a6 {[%emt 0:0:2]} 34. b3 {[%emt 0:0:19]} b5 {[%emt 0:0:18]
} 35. cxb5 {[%emt 0:0:47]} axb5 {[%emt 0:0:1]} 36. Ba7 {[%emt 0:0:27]} Bf8 {[%emt 0:0:51]} 37. Kf3 {[%emt 0:0:8]} b4 {[%emt 0:0:8]} 38. Bb8 {[%emt 0:0:0]} Ke6 {[%emt 0:0:5]} 39. Bf4 {[%emt 0:0:2]} g5 {[%emt 0:0:28]} 40. Bc1 {[%emt 0:0:48]} Kf5 {[%emt 0:0:3]} 41. a4 {[%emt 0:0:25]} bxa3 {[%emt 0:0:35]
} 42. Bxa3 {[%emt 0:0:1]} h5 {[%emt 0:0:3]} 43. Bc1 {[%emt 0:0:0]} Bg7 {[%emt 0:0:4]} 44. Bd2 {[%emt 0:0:25]} g4+ {[%emt 0:0:23]} 45. hxg4+ {[%emt 0:0:1]} hxg4+ {[%emt 0:0:1]} 46. Ke2 {[%emt 0:0:9]} Ke4 {[%emt 0:0:8]
} 47. Be1 {[%emt 0:0:15]} Kf4 {[%emt 0:0:56]} 48. b4 {[%emt 0:0:0]} c4 {[%emt 0:0:14]} 49. Bf2 {[%emt 0:0:5]} g3 {[%emt 0:0:15]} 50. Bc5 {[%emt 0:0:14]} Ke4 {[%emt 0:0:10]} 51. b5 {[%emt 0:0:12]} Be5 {[%emt 0:0:0]} 52. b6 {[%emt 0:0:5]} Kd5 {[%emt 0:0:2]} 53. Be3 {[%emt 0:0:6]} Kc6 54. Kf3 Kb7 {[%emt 0:0:26]} 55. Ke4 {[%emt 0:0:20]} c3 {[%emt 0:0:3]} 56. Kd3 {[%emt 0:0:21]} Kc6 {[%emt 0:0:3]} 57. Bg1 {[%emt 0:0:5]} g2 {[%emt 0:0:15]
} 58. Bf2 {[%emt 0:0:4]} Kb5 {[%emt 0:0:21]} 59. b7 {[%emt 0:0:0]} Kb4 {[%emt 0:0:10]} 60. Bd4 {[%emt 0:0:19]} Bb8 {[%emt 0:0:13]} 61. Bxc3+ {[%emt 0:0:2]} 1/2-1/2

[Event "FIDE World Rapid-ch Open 2018"]
[White "Piorun, Kacper"]
[Black "Sanikidze, Tornike"]
[Site "St. Petersburg"]
[Round "5.54"]
[Annotator "RC"]
[Result "1-0"]
[Date "2018.12.26"]
[WhiteElo "2634"]
[BlackElo "2507"]
[PlyCount "73"]
[TimeControl "900+10"]

1. c4 {[%emt 0:0:0]} e6 {[%emt 0:0:0]} 2. Nf3 {[%emt 0:0:0]} Nf6 {[%emt 0:0:0]
} 3. g3 {[%emt 0:0:4]} d5 {[%emt 0:0:0]} 4. d4 {[%emt 0:0:0]} dxc4 {[%emt 0:0:0]} 5. Bg2 {[%emt 0:0:2]} Nc6 {[%emt 0:0:0]} 6. Qa4 {[%emt 0:0:17]} Bb4+ {[%emt 0:0:2]} 7. Bd2 {[%emt 0:0:15]} Nd5 {[%emt 0:0:0]} 8. Qb5 {[%emt 0:0:52]} Bxd2+ {[%emt 0:0:36]} 9. Nbxd2 {[%emt 0:0:1]} c3 {[%emt 0:0:2]} 10. bxc3 {[%emt 0:0:2]} Nxc3 {[%emt 0:0:2]} 11. Qb3 {[%emt 0:0:23]
} Nd5 {[%emt 0:0:5]} 12. 0-0 {[%emt 0:0:2]} 0-0 {[%emt 0:0:0]} 13. Rfc1 {[%emt 0:0:8]} Nce7 {[%emt 0:2:48]} 14. Qc2 {[%emt 0:1:46]} c6 {[%emt 0:0:59]} 15. Ne5 {[%emt 0:0:44]} f6 {[%emt 0:0:42]} 16. Nd3 {[%emt 0:0:5]
} b6 {[%emt 0:0:4]} 17. Nf3 {[%emt 0:0:17]} Ba6 {[%emt 0:0:0]} 18. e4 {[%emt 0:0:58]} Bxd3 {[%emt 0:0:20]} 19. Qxd3 {[%emt 0:0:1]} Nc7 {[%emt 0:0:0]} 20. Qb3 {[%emt 0:0:10]} Kh8 {[%emt 0:0:19]} 21. Rd1 {[%emt 0:1:6]
} Qe8 {[%emt 0:2:27]} 22. Rac1 {[%emt 0:0:3]} Rc8 {[%emt 0:0:0]} 23. Ne1 {[%emt 0:3:29]} f5 {[%emt 0:1:15]} 24. Nd3 {[%emt 0:0:8]} fxe4 {[%emt 0:1:29]} 25. Bxe4 {[%emt 0:0:6]} Ncd5 {[%emt 0:0:2]} 26. Ne5 {[%emt 0:1:2]
} Qh5 {[%emt 0:2:11]} 27. Qb2 {[%emt 0:1:39]} c5 {[%emt 0:0:0]} 28. Re1 {[%emt 0:0:5]} cxd4 {[%emt 0:2:6]} 29. Rxc8 {[%emt 0:1:18]} Rxc8 {[%emt 0:0:1]} 30. Qxd4 {[%emt 0:0:5]} Kg8 {[%emt 0:0:3]} 31. Bf3 {[%emt 0:0:26]
} Qh6 {[%emt 0:0:31]} 32. Bg4 {[%emt 0:1:28]} Qf6 {[%emt 0:0:0]} 33. Qa4 {[%emt 0:0:22]} a5 {[%emt 0:0:18]} 34. Nd7 {[%emt 0:0:24]} Qc3 {[%emt 0:0:10]} 35. Bxe6+ {[%emt 0:0:8]} Kh8 {[%emt 0:0:0]} 36. Qd1 {[%emt 0:1:44]
} Nf6 {[%emt 0:0:21]} 37. Nxf6 {[%emt 0:0:6]} 1-0